[Event "2nd Serbian League-Vojvodina 2023"]
[Site "Novi Sad"]
[Date "2023.11.06"]
[Round "6.2"]
[White "Varga, Zoltan"]
[Black "Lalic, Bogdan"]
[Result "1/2-1/2"]
[ECO "D77"]
[WhiteElo "2356"]
[BlackElo "2345"]
[Annotator "RC"]
[PlyCount "20"]
[EventDate "2023.10.22"]
[EventType "team-tourn"]
[EventCountry "SRB"]
[SourceTitle "playchess.com"]
[Source "ChessBase"]
[SourceQuality "1"]
[TimeControl "40/5400+30:1800+30"]

1. Nf3 {[%emt 0:00:03]} d5 {[%emt 0:00:41]} 2. d4 {[%emt 0:00:05]} Nf6 {[%emt 0:00:06]} 3. g3 {[%emt 0:00:17]} g6 {[%emt 0:00:09]} 4. Bg2 {[%emt 0:00:04]} Bg7 {[%emt 0:00:05]} 5. O-O {[%emt 0:00:05]} O-O {[%emt 0:00:05]} 6. c4 {[%emt 0:00:05]} dxc4 {[%emt 0:00:06]} 7. Na3 {[%emt 0:00:09]} c3 {[%emt 0:00:07]} 8. bxc3 {[%emt 0:00:07]} c5 {[%emt 0:00:06]} 9. Qb3 {[%emt 0:00:39]} Nc6 {[%emt 0:00:08]} 10. Rd1 {[%emt 0:00:07]} cxd4 {[%emt 0:00:14]} 1/2-1/2

[Event "2nd Serbian League-Vojvodina 2023"]
[Site "Novi Sad"]
[Date "2023.11.06"]
[Round "6.3"]
[White "Grujic, Zoran"]
[Black "Strbac, Mladen"]
[Result "1/2-1/2"]
[ECO "A17"]
[WhiteElo "2315"]
[BlackElo "2246"]
[Annotator "RC"]
[PlyCount "20"]
[EventDate "2023.10.22"]
[EventType "team-tourn"]
[EventCountry "SRB"]
[SourceTitle "playchess.com"]
[Source "ChessBase"]
[SourceQuality "1"]
[TimeControl "40/5400+30:1800+30"]

1. Nf3 {[%emt 0:00:03]} Nf6 {[%emt 0:00:11]} 2. c4 {[%emt 0:00:05]} e6 {[%emt 0:00:05]} 3. Nc3 {[%emt 0:00:05]} Bb4 {[%emt 0:00:07]} 4. Qc2 {[%emt 0:00:08]} O-O {[%emt 0:00:08]} 5. a3 {[%emt 0:00:05]} Bxc3 {[%emt 0:00:07]} 6. Qxc3 {[%emt 0:00:04]} b6 {[%emt 0:00:09]} 7. e3 {[%emt 0:00:09]} Bb7 {[%emt 0:00:06]} 8. Be2 {[%emt 0:00:05]} d6 {[%emt 0:00:10]} 9. b4 {[%emt 0:00:06]} Nbd7 {[%emt 0:00:09]} 10. Bb2 {[%emt 0:00:06]} Qe7 {[%emt 0:00:41]} 1/2-1/2

[Event "2nd Serbian League-Vojvodina 2023"]
[Site "Novi Sad"]
[Date "2023.11.06"]
[Round "6.4"]
[White "Milanovic, Marko"]
[Black "Dragojlovic, Andjelko"]
[Result "1/2-1/2"]
[ECO "B40"]
[WhiteElo "2248"]
[BlackElo "2108"]
[Annotator "RC"]
[PlyCount "22"]
[EventDate "2023.10.22"]
[EventType "team-tourn"]
[EventCountry "SRB"]
[SourceTitle "playchess.com"]
[Source "ChessBase"]
[SourceQuality "1"]
[TimeControl "40/5400+30:1800+30"]

1. e4 {[%emt 0:00:06]} c5 {[%emt 0:00:18]} 2. Nf3 {[%emt 0:00:24]} e6 {[%emt 0:00:52]} 3. g3 {[%emt 0:00:54]} Nc6 {[%emt 0:01:16]} 4. Bg2 {[%emt 0:00:07]} g6 {[%emt 0:02:33]} 5. d4 {[%emt 0:04:28]} cxd4 {[%emt 0:00:07]} 6. Nxd4 {[%emt 0:00:11]} Qb6 {[%emt 0:00:08]} 7. Nb3 {[%emt 0:02:28]} Bg7 {[%emt 0:03:04]} 8. O-O {[%emt 0:02:19]} Nge7 {[%emt 0:01:41]} 9. Nc3 {[%emt 0:04:23]} O-O {[%emt 0:01:15]} 10. Be3 {[%emt 0:03:30]} Qd8 {[%emt 0:00:08]} 11. Rb1 {[%emt 0:10:51]} f5 {[%emt 0:12:09]} 1/2-1/2

[Event "2nd Serbian League-Vojvodina 2023"]
[Site "Novi Sad"]
[Date "2023.11.06"]
[Round "6.5"]
[White "Stikovic, Dobrica"]
[Black "Levnajic, Pavle"]
[Result "1-0"]
[ECO "A55"]
[WhiteElo "2162"]
[BlackElo "2160"]
[Annotator "RC"]
[PlyCount "127"]
[EventDate "2023.10.22"]
[EventType "team-tourn"]
[EventCountry "SRB"]
[SourceTitle "playchess.com"]
[Source "ChessBase"]
[SourceQuality "1"]
[TimeControl "40/5400+30:1800+30"]

1. Nf3 {[%emt 0:00:03]} Nf6 {[%emt 0:03:09]} 2. c4 {[%emt 1:31:27]} d6 {[%emt 0:02:42]} 3. Nc3 {[%emt 0:00:00]} e5 {[%emt 0:00:10]} 4. d4 {[%emt 0:00:00]} Nbd7 {[%emt 0:00:07]} 5. g3 {[%emt 0:00:00]} c6 {[%emt 0:00:43]} 6. e4 {[%emt 0:00:00]} Be7 {[%emt 0:00:30]} 7. Bg2 {[%emt 0:00:00]} O-O {[%emt 0:00:09]} 8. O-O {[%emt 0:00:00]} Re8 {[%emt 0:01:20]} 9. h3 {[%emt 0:00:00]} Bf8 {[%emt 0:00:13]} 10. Qc2 {[%emt 0:00:00]} a6 {[%emt 0:01:19]} 11. Be3 {[%emt 0:04:30]} b5 {[%emt 0:03:27]} 12. dxe5 {[%emt 0:00:00]} dxe5 {[%emt 0:00:56]} 13. Rfd1 {[%emt 0:00:00]} Bb7 {[%emt 0:02:46]} 14. a3 {[%emt 0:00:00]} Qc7 {[%emt 0:06:25]} 15. Nd2 {[%emt 0:00:00]} Bc5 {[%emt 0:07:04]} 16. Nf1 {[%emt 0:00:00]} Rad8 {[%emt 0:14:52]} 17. b4 {[%emt 0:00:00]} Bxe3 {[%emt 0:00:40]} 18. Nxe3 {[%emt 0:00:00]} Nf8 {[%emt 0:52:58]} 19. c5 {[%emt 0:00:00]} Bc8 {[%emt 0:00:00]} 20. Rxd8 {[%emt 0:00:00]} Rxd8 {[%emt 0:00:00]} 21. Rd1 {[%emt 0:00:00]} Rd4 {[%emt 0:00:00]} 22. Ne2 {[%emt 0:05:30]} Rd8 {[%emt 0:00:00]} 23. Rxd8 {[%emt 0:00:00]} Qxd8 {[%emt 0:00:00]} 24. Qd1 {[%emt 0:00:00]} Qxd1+ {[%emt 0:00:00]} 25. Nxd1 {[%emt 0:00:00]} Be6 {[%emt 0:00:00]} 26. Ne3 {[%emt 0:00:00]} g6 {[%emt 0:00:00]} 27. f4 {[%emt 0:00:00]} N8d7 {[%emt 0:00:00]} 28. Kf2 {[%emt 0:00:00]} Kf8 {[%emt 0:00:00]} 29. Nc3 {[%emt 0:00:00]} Bb3 {[%emt 0:00:00]} 30. Bf3 {[%emt 0:00:00]} h5 {[%emt 0:00:00]} 31. h4 {[%emt 0:00:00]} Ke7 {[%emt 0:00:00]} 32. Ke2 {[%emt 0:00:00]} Ne8 {[%emt 0:00:00]} 33. Kd3 {[%emt 0:00:00]} Nc7 {[%emt 0:00:00]} 34. Ne2 {[%emt 0:00:00]} a5 {[%emt 0:00:00]} 35. Kc3 {[%emt 0:00:00]} a4 {[%emt 0:00:00]} 36. f5 {[%emt 0:00:00]} Kf6 {[%emt 0:00:00]} 37. Nc1 {[%emt 0:00:00]} gxf5 {[%emt 0:00:57]} 38. Nxf5 {[%emt 0:00:00]} Be6 {[%emt 0:01:14]} 39. Ne3 {[%emt 0:00:00]} Kg6 {[%emt 0:00:21]} 40. Nd3 {[%emt 0:00:00]} Bh3 {[%emt 0:02:09]} 41. Nf2 {[%emt 0:19:42]} Be6 {[%emt 0:30:24]} 42. Nd3 {[%emt 0:01:07]} f6 {[%emt 0:01:48]} 43. Nf5 {[%emt 0:01:41]} Nb8 {[%emt 0:01:19]} 44. Nd6 {[%emt 0:01:13]} Nd7 {[%emt 0:00:56]} 45. Nf2 {[%emt 0:00:21]} Nf8 {[%emt 0:02:17]} 46. Nd1 {[%emt 0:00:41]} Bd7 {[%emt 0:00:53]} 47. Ne3 {[%emt 0:00:33]} Ne8 {[%emt 0:01:12]} 48. Nef5 {[%emt 0:17:42]} Ne6 {[%emt 0:00:32]} 49. Ne7+ {[%emt 0:00:00]} Kh6 {[%emt 0:01:28]} 50. Ndf5+ {[%emt 0:00:00]} Kh7 {[%emt 0:00:00]} 51. Bxh5 {[%emt 0:00:00]} N8g7 {[%emt 0:00:00]} 52. Bg6+ {[%emt 0:00:00]} Kh8 {[%emt 0:00:00]} 53. Nd6 {[%emt 0:00:00]} Nd8 {[%emt 0:02:00]} 54. Nf7+ {[%emt 0:00:00]} Nxf7 {[%emt 0:00:00]} 55. Bxf7 {[%emt 0:00:00]} Ne8 {[%emt 0:00:00]} 56. Bxe8 {[%emt 0:00:00]} Bxe8 {[%emt 0:00:00]} 57. g4 {[%emt 0:00:00]} Kg7 {[%emt 0:00:00]} 58. Nf5+ {[%emt 0:00:00]} Kg6 {[%emt 0:00:05]} 59. Kd3 {[%emt 0:00:00]} Bd7 {[%emt 0:00:28]} 60. Ke3 {[%emt 0:00:00]} Be8 {[%emt 0:00:17]} 61. Kf3 {[%emt 0:00:01]} Bd7 {[%emt 0:00:07]} 62. Kg3 {[%emt 0:00:14]} Be8 {[%emt 0:00:06]} 63. h5+ {[%emt 0:00:23]} Kg5 {[%emt 0:00:18]} 64. Nd6 {[%emt 0:00:07]} 1-0

[Event "2nd Serbian League-Vojvodina 2023"]
[Site "Novi Sad"]
[Date "2023.11.06"]
[Round "6.6"]
[White "Joksimovic, Dragoljub"]
[Black "Veljkovic, Vojislav"]
[Result "0-1"]
[ECO "E07"]
[WhiteElo "2123"]
[BlackElo "2163"]
[Annotator "RC"]
[PlyCount "77"]
[EventDate "2023.10.22"]
[EventType "team-tourn"]
[EventCountry "SRB"]
[SourceTitle "playchess.com"]
[Source "ChessBase"]
[SourceQuality "1"]
[TimeControl "40/5400+30:1800+30"]

1. Nf3 {[%emt 0:00:12]} e6 {[%emt 0:00:41]} 2. g3 {[%emt 0:00:25]} d5 {[%emt 0:00:16]} 3. d4 {[%emt 0:00:10]} Be7 {[%emt 0:01:47]} 4. Bg2 {[%emt 0:00:07]} Nf6 {[%emt 0:00:09]} 5. O-O {[%emt 0:00:08]} Nbd7 {[%emt 0:00:35]} 6. c4 {[%emt 0:00:22]} O-O {[%emt 0:00:45]} 7. Nc3 {[%emt 0:00:08]} Re8 {[%emt 0:02:19]} 8. Qc2 {[%emt 0:00:26]} c6 {[%emt 0:00:55]} 9. Rd1 {[%emt 0:00:29]} dxc4 {[%emt 0:05:07]} 10. a4 {[%emt 0:01:34]} Qa5 {[%emt 0:01:08]} 11. e4 {[%emt 0:01:15]} e5 {[%emt 0:01:57]} 12. d5 {[%emt 0:01:16]} Bb4 {[%emt 0:01:02]} 13. Na2 {[%emt 0:05:17]} cxd5 {[%emt 0:05:25]} 14. Nxb4 {[%emt 0:00:21]} Qxb4 {[%emt 0:00:07]} 15. exd5 {[%emt 0:00:07]} Nc5 {[%emt 0:01:33]} 16. Bg5 {[%emt 0:01:41]} Nfe4 {[%emt 0:00:59]} 17. Rac1 {[%emt 0:05:37]} Nd3 {[%emt 0:11:27]} 18. Rxd3 {[%emt 0:04:16]} cxd3 {[%emt 0:00:30]} 19. Qxd3 {[%emt 0:00:05]} Nd6 {[%emt 0:01:54]} 20. Qc3 {[%emt 0:05:59]} Qxc3 {[%emt 0:04:24]} 21. bxc3 {[%emt 0:00:21]} Bd7 {[%emt 0:00:08]} 22. c4 {[%emt 0:01:27]} Bxa4 {[%emt 0:03:01]} 23. c5 {[%emt 0:00:53]} Ne4 {[%emt 0:08:36]} 24. Be3 {[%emt 0:00:09]} Bb3 {[%emt 0:00:38]} 25. d6 {[%emt 0:02:40]} Bd5 {[%emt 0:01:43]} 26. Ng5 {[%emt 0:02:31]} Nf6 {[%emt 0:00:13]} 27. Bf1 {[%emt 0:02:18]} h6 {[%emt 0:02:28]} 28. Nh3 {[%emt 0:00:28]} a5 {[%emt 0:02:55]} 29. Ra1 {[%emt 0:03:05]} Rec8 {[%emt 0:01:02]} 30. f4 {[%emt 0:02:27]} Ng4 {[%emt 0:00:04]} 31. Bd2 {[%emt 0:00:09]} Rxc5 {[%emt 0:00:41]} 32. d7 {[%emt 0:01:25]} b6 {[%emt 0:01:44]} 33. fxe5 {[%emt 0:01:01]} Nxe5 {[%emt 0:00:13]} 34. Be3 {[%emt 0:00:25]} Nxd7 {[%emt 0:01:00]} 35. Bxc5 {[%emt 0:00:14]} Nxc5 {[%emt 0:00:05]} 36. Nf4 {[%emt 0:00:09]} Bb3 {[%emt 0:00:05]} 37. Bg2 {[%emt 0:00:42]} Rd8 {[%emt 0:00:14]} 38. Ne2 {[%emt 0:00:47]} Rd1+ {[%emt 0:00:38]} 39. Bf1 {[%emt 0:58:54]} 0-1

[Event "2nd Serbian League-Vojvodina 2023"]
[Site "Novi Sad"]
[Date "2023.11.06"]
[Round "6.7"]
[White "Farkas, Sandor I"]
[Black "Nevednichy, Vladislav"]
[Result "0-1"]
[ECO "B60"]
[WhiteElo "2112"]
[BlackElo "2447"]
[Annotator "RC"]
[PlyCount "58"]
[EventDate "2023.10.22"]
[EventType "team-tourn"]
[EventCountry "SRB"]
[SourceTitle "playchess.com"]
[Source "ChessBase"]
[SourceQuality "1"]
[TimeControl "40/5400+30:1800+30"]

1. e4 {[%emt 0:02:09]} c5 {[%emt 0:00:06]} 2. Nf3 {[%emt 0:00:30]} Nc6 {[%emt 0:00:22]} 3. d4 {[%emt 0:00:14]} cxd4 {[%emt 0:00:02]} 4. Nxd4 {[%emt 0:00:09]} Nf6 {[%emt 0:00:04]} 5. Nc3 {[%emt 0:00:09]} d6 {[%emt 0:00:04]} 6. Bg5 {[%emt 0:01:00]} Bd7 {[%emt 0:01:45]} 7. Bxf6 {[%emt 0:02:33]} gxf6 {[%emt 0:00:03]} 8. Nxc6 {[%emt 0:01:55]} bxc6 {[%emt 0:00:10]} 9. Bc4 {[%emt 0:02:03]} h5 {[%emt 0:01:12]} 10. Bb3 {[%emt 0:06:14]} Qa5 {[%emt 0:04:08]} 11. f4 {[%emt 0:02:41]} f5 {[%emt 0:01:21]} 12. Qd4 {[%emt 0:05:24]} Rg8 {[%emt 0:00:55]} 13. Qc4 {[%emt 0:04:19]} e6 {[%emt 0:02:32]} 14. O-O-O {[%emt 0:02:08]} Rxg2 {[%emt 0:02:20]} 15. Rhe1 {[%emt 0:03:12]} Rg4 {[%emt 0:06:33]} 16. Nd5 {[%emt 0:13:41]} cxd5 {[%emt 0:00:43]} 17. exd5 {[%emt 0:00:18]} Rc8 {[%emt 0:13:03]} 18. Qd3 {[%emt 0:05:11]} Rxf4 {[%emt 0:00:50]} 19. dxe6 {[%emt 0:01:42]} fxe6 {[%emt 0:00:27]} 20. Bxe6 {[%emt 0:00:34]} Bxe6 {[%emt 0:00:20]} 21. Rxe6+ {[%emt 0:00:13]} Kf7 {[%emt 0:00:10]} 22. Qe2 {[%emt 0:21:12]} Qxa2 {[%emt 0:01:37]} 23. Rexd6 {[%emt 0:01:25]} Rxc2+ {[%emt 0:04:09]} 24. Qxc2 {[%emt 0:02:32]} Rc4 {[%emt 0:00:06]} 25. Rd7+ {[%emt 0:02:26]} Ke6 {[%emt 0:00:14]} 26. Qxc4+ {[%emt 0:00:19]} Qxc4+ {[%emt 0:00:04]} 27. Kb1 {[%emt 0:00:07]} Qe4+ {[%emt 0:00:39]} 28. R7d3 {[%emt 0:00:42]} f4 {[%emt 0:00:30]} 29. Ka2 {[%emt 0:00:18]} f3 {[%emt 0:01:50]} 0-1

[Event "2nd Serbian League-Vojvodina 2023"]
[Site "Novi Sad"]
[Date "2023.11.06"]
[Round "6.8"]
[White "Stoleriu, George"]
[Black "Szalai, Kornel"]
[Result "1/2-1/2"]
[ECO "B06"]
[WhiteElo "2400"]
[BlackElo "2383"]
[Annotator "RC"]
[PlyCount "85"]
[EventDate "2023.10.22"]
[EventType "team-tourn"]
[EventCountry "SRB"]
[SourceTitle "playchess.com"]
[Source "ChessBase"]
[SourceQuality "1"]
[TimeControl "40/5400+30:1800+30"]

1. e4 {[%emt 0:00:03]} g6 {[%emt 0:03:30]} 2. d4 {[%emt 0:00:07]} Bg7 {[%emt 0:00:04]} 3. Nc3 {[%emt 0:00:03]} c5 {[%emt 0:01:05]} 4. dxc5 {[%emt 0:00:13]} Qa5 {[%emt 0:09:54]} 5. Bd2 {[%emt 0:00:17]} Qxc5 {[%emt 0:02:22]} 6. Nd5 {[%emt 0:00:05]} b6 {[%emt 0:05:02]} 7. Bf4 {[%emt 0:18:20]} Na6 {[%emt 0:31:55]} 8. c3 {[%emt 0:21:14]} e6 {[%emt 0:11:46]} 9. Bxa6 {[%emt 0:12:34]} exd5 {[%emt 0:00:46]} 10. Bxc8 {[%emt 0:00:06]} Rxc8 {[%emt 0:00:14]} 11. exd5 {[%emt 0:00:26]} Ne7 {[%emt 0:00:26]} 12. d6 {[%emt 0:08:01]} Nd5 {[%emt 0:00:33]} 13. Ne2 {[%emt 0:00:06]} O-O {[%emt 0:03:28]} 14. O-O {[%emt 0:00:34]} Rce8 {[%emt 0:01:44]} 15. Bc1 {[%emt 0:05:45]} Re4 {[%emt 0:02:12]} 16. Ng3 {[%emt 0:00:43]} Re6 {[%emt 0:00:05]} 17. Qd3 {[%emt 0:09:43]} Rfe8 {[%emt 0:05:27]} 18. Bd2 {[%emt 0:01:26]} f5 {[%emt 0:05:28]} 19. Rfe1 {[%emt 0:07:28]} Rxe1+ {[%emt 0:03:50]} 20. Rxe1 {[%emt 0:00:09]} Rxe1+ {[%emt 0:00:04]} 21. Bxe1 {[%emt 0:00:02]} Be5 {[%emt 0:01:00]} 22. Qa6 {[%emt 0:02:13]} Nf4 {[%emt 0:02:28]} 23. Bd2 {[%emt 0:03:15]} Qxd6 {[%emt 0:01:48]} 24. Bxf4 {[%emt 0:00:32]} Bxf4 {[%emt 0:00:04]} 25. Nf1 {[%emt 0:01:31]} Bc1 {[%emt 0:01:06]} 26. b3 {[%emt 0:02:08]} Qc7 {[%emt 0:01:36]} 27. Qd3 {[%emt 0:00:15]} Qc6 {[%emt 0:00:12]} 28. c4 {[%emt 0:00:28]} Bf4 {[%emt 0:06:21]} 29. g3 {[%emt 0:07:13]} Bh6 {[%emt 0:00:30]} 30. h3 {[%emt 0:00:00]} Qe6 {[%emt 0:00:30]} 31. Kg2 {[%emt 0:00:00]} Kf7 {[%emt 0:00:30]} 32. Nd2 {[%emt 0:01:30]} Bxd2 {[%emt 0:00:00]} 33. Qxd2 {[%emt 0:00:00]} Qc6+ {[%emt 0:00:00]} 34. f3 {[%emt 0:01:00]} b5 {[%emt 0:00:00]} 35. cxb5 {[%emt 0:00:00]} Qxb5 {[%emt 0:00:00]} 36. h4 {[%emt 0:00:00]} Qc6 {[%emt 0:00:00]} 37. Qb2 {[%emt 0:00:16]} a6 {[%emt 0:00:52]} 38. b4 {[%emt 0:00:53]} d5 {[%emt 0:00:19]} 39. Qh8 {[%emt 0:00:38]} h5 {[%emt 0:00:28]} 40. Qh7+ {[%emt 0:00:26]} Kf6 {[%emt 0:00:08]} 41. Qh8+ {[%emt 0:30:14]} Kf7 {[%emt 0:30:28]} 42. Qh7+ {[%emt 0:00:39]} Kf6 {[%emt 0:00:05]} 43. Qh8+ {[%emt 0:00:00]} 1/2-1/2

[Event "2nd Serbian League-Vojvodina 2023"]
[Site "Novi Sad"]
[Date "2023.11.06"]
[Round "6.9"]
[White "Nadj Hedjesi, Balind"]
[Black "Sekulic, Dusan"]
[Result "1-0"]
[ECO "A43"]
[WhiteElo "2227"]
[BlackElo "2145"]
[Annotator "RC"]
[PlyCount "72"]
[EventDate "2023.10.22"]
[EventType "team-tourn"]
[EventCountry "SRB"]
[SourceTitle "playchess.com"]
[Source "ChessBase"]
[SourceQuality "1"]
[TimeControl "40/5400+30:1800+30"]

1. Nf3 {[%emt 0:03:51]} Nf6 {[%emt 0:02:05]} 2. d4 {[%emt 0:00:21]} c5 {[%emt 0:00:34]} 3. d5 {[%emt 0:00:28]} b5 {[%emt 0:04:22]} 4. e4 {[%emt 0:00:04]} Nxe4 {[%emt 0:01:02]} 5. Bd3 {[%emt 0:04:49]} Nd6 {[%emt 0:01:19]} 6. Bf4 {[%emt 0:00:22]} c4 {[%emt 0:07:10]} 7. Be2 {[%emt 0:00:44]} Bb7 {[%emt 0:04:04]} 8. Nd4 {[%emt 0:36:24]} Qb6 {[%emt 0:06:42]} 9. O-O {[%emt 0:09:54]} Na6 {[%emt 0:08:31]} 10. a4 {[%emt 0:09:41]} Nc7 {[%emt 0:01:16]} 11. Bxd6 {[%emt 0:03:58]} exd6 {[%emt 0:19:20]} 12. Nxb5 {[%emt 0:02:33]} Nxb5 {[%emt 0:14:49]} 13. axb5 {[%emt 0:00:05]} Qxb5 {[%emt 0:01:15]} 14. Nc3 {[%emt 0:02:37]} Qb6 {[%emt 0:05:50]} 15. Bxc4 {[%emt 0:01:33]} Be7 {[%emt 0:00:42]} 16. Re1 {[%emt 0:01:20]} Kf8 {[%emt 0:00:35]} 17. Ne4 {[%emt 0:03:01]} g6 {[%emt 0:01:19]} 18. Qd2 {[%emt 0:01:04]} f5 {[%emt 0:05:56]} 19. Qh6+ {[%emt 0:06:41]} Kf7 {[%emt 0:02:32]} 20. Ng3 {[%emt 0:06:40]} Qd4 {[%emt 0:05:32]} 21. Bb3 {[%emt 0:01:35]} Bf8 {[%emt 0:01:37]} 22. Qg5 {[%emt 0:01:00]} h6 {[%emt 0:01:20]} 23. Nxf5 {[%emt 0:00:44]} Qxf2+ {[%emt 0:00:44]} 24. Kxf2 {[%emt 0:00:00]} hxg5 {[%emt 0:00:12]} 25. Ne3 {[%emt 0:00:23]} Rxh2 {[%emt 0:00:40]} 26. Kg3 {[%emt 0:03:38]} Rh4 {[%emt 0:01:09]} 27. Ng4 {[%emt 0:00:00]} Bg7 {[%emt 0:01:15]} 28. Re4 {[%emt 0:00:00]} Kg8 {[%emt 0:00:34]} 29. Re7 {[%emt 0:00:00]} a5 {[%emt 0:00:58]} 30. c3 {[%emt 0:00:00]} Rf8 {[%emt 0:00:47]} 31. Rxa5 {[%emt 0:02:30]} Rf4 {[%emt 0:00:28]} 32. Bd1 {[%emt 0:00:00]} Rf1 {[%emt 0:01:09]} 33. Bf3 {[%emt 0:00:00]} Rb1 {[%emt 0:00:12]} 34. Rb5 {[%emt 0:00:00]} Ba6 {[%emt 0:00:18]} 35. Rb8+ {[%emt 0:00:00]} Kh7 {[%emt 0:00:21]} 36. Nf6+ {[%emt 0:02:30]} Kh6 {[%emt 0:00:14]} 1-0

[Event "2nd Serbian League-Vojvodina 2023"]
[Site "Novi Sad"]
[Date "2023.11.06"]
[Round "6.10"]
[White "Kovacevic, Sinisa"]
[Black "Juhasz, Bence R"]
[Result "0-1"]
[ECO "E62"]
[WhiteElo "2240"]
[BlackElo "2210"]
[Annotator "RC"]
[PlyCount "102"]
[EventDate "2023.10.22"]
[EventType "team-tourn"]
[EventCountry "SRB"]
[SourceTitle "playchess.com"]
[Source "ChessBase"]
[SourceQuality "1"]
[TimeControl "40/5400+30:1800+30"]

1. d4 {[%emt 1:31:00]} Nf6 {[%emt 0:02:05]} 2. c4 {[%emt 0:00:00]} g6 {[%emt 0:00:05]} 3. Nc3 {[%emt 0:00:00]} Bg7 {[%emt 0:00:05]} 4. Nf3 {[%emt 0:00:00]} O-O {[%emt 0:00:05]} 5. g3 {[%emt 0:00:00]} d6 {[%emt 0:00:05]} 6. Bg2 {[%emt 0:00:00]} Nc6 {[%emt 0:01:18]} 7. O-O {[%emt 0:00:00]} e5 {[%emt 0:00:09]} 8. d5 {[%emt 0:00:00]} Nb8 {[%emt 0:00:07]} 9. e4 {[%emt 0:00:00]} a5 {[%emt 0:01:01]} 10. h3 {[%emt 0:00:00]} Na6 {[%emt 0:01:08]} 11. Be3 {[%emt 0:00:00]} Nh5 {[%emt 0:09:09]} 12. Re1 {[%emt 0:00:00]} Qe8 {[%emt 0:07:40]} 13. Qd2 {[%emt 0:00:00]} Bd7 {[%emt 0:02:15]} 14. g4 {[%emt 0:00:00]} Nf6 {[%emt 0:02:10]} 15. Nh2 {[%emt 0:00:00]} Qd8 {[%emt 0:07:38]} 16. f4 {[%emt 0:00:00]} exf4 {[%emt 0:05:56]} 17. Bxf4 {[%emt 0:00:00]} h5 {[%emt 0:01:23]} 18. g5 {[%emt 0:00:00]} Nh7 {[%emt 0:04:54]} 19. Nf3 {[%emt 0:00:00]} f6 {[%emt 0:01:04]} 20. h4 {[%emt 0:00:00]} Nc5 {[%emt 0:13:48]} 21. Rf1 {[%emt 0:00:00]} Qe7 {[%emt 0:04:54]} 22. gxf6 {[%emt 0:00:00]} Rxf6 {[%emt 0:07:07]} 23. e5 {[%emt 0:00:00]} dxe5 {[%emt 0:00:37]} 24. Rae1 {[%emt 0:01:11]} Rxf4 {[%emt 0:01:23]} 25. Qxf4 {[%emt 0:00:12]} Nd3 {[%emt 0:00:09]} 26. Qg3 {[%emt 0:00:44]} Nxe1 {[%emt 0:00:09]} 27. Rxe1 {[%emt 0:00:05]} Nf8 {[%emt 0:11:42]} 28. Nxe5 {[%emt 0:01:13]} Qd6 {[%emt 0:00:42]} 29. Kh2 {[%emt 0:00:56]} Re8 {[%emt 0:03:17]} 30. Nd3 {[%emt 0:00:06]} Rxe1 {[%emt 0:01:26]} 31. Qxd6 {[%emt 0:00:05]} cxd6 {[%emt 0:00:10]} 32. Nxe1 {[%emt 0:00:01]} Bf5 {[%emt 0:01:16]} 33. Bh3 {[%emt 0:00:31]} Bxc3 {[%emt 0:01:50]} 34. bxc3 {[%emt 0:00:06]} Bxh3 {[%emt 0:00:21]} 35. Kxh3 {[%emt 0:00:05]} Nd7 {[%emt 0:00:54]} 36. Nd3 {[%emt 0:00:24]} Kf7 {[%emt 0:01:12]} 37. Kg3 {[%emt 0:00:18]} Kf6 {[%emt 0:01:39]} 38. Kf4 {[%emt 0:01:37]} b6 {[%emt 0:00:55]} 39. Nf2 {[%emt 0:02:16]} Nc5 {[%emt 0:00:08]} 40. Nd1 {[%emt 0:05:11]} Na4 {[%emt 0:02:59]} 41. a3 {[%emt 0:30:43]} Nc5 {[%emt 0:30:48]} 42. Nf2 {[%emt 0:00:36]} Kf7 {[%emt 0:01:32]} 43. Kg3 {[%emt 0:02:08]} Kg7 {[%emt 0:02:46]} 44. Kf3 {[%emt 0:00:07]} Kf6 {[%emt 0:01:01]} 45. Kf4 {[%emt 0:00:05]} a4 {[%emt 0:00:43]} 46. Nd1 {[%emt 0:00:54]} Nd3+ {[%emt 0:00:47]} 47. Ke4 {[%emt 0:00:06]} Ne5 {[%emt 0:00:16]} 48. Nb2 {[%emt 0:01:19]} g5 {[%emt 0:00:08]} 49. hxg5+ {[%emt 0:00:13]} Kxg5 {[%emt 0:00:05]} 50. Nxa4 {[%emt 0:00:21]} h4 {[%emt 0:00:17]} 51. c5 {[%emt 0:00:10]} h3 {[%emt 0:00:46]} 0-1

[Event "2nd Serbian League-Vojvodina 2023"]
[Site "Novi Sad"]
[Date "2023.11.06"]
[Round "6.11"]
[White "Kecskemeti, Arpad"]
[Black "Zolotic, Zoran"]
[Result "1-0"]
[ECO "B01"]
[WhiteElo "2185"]
[BlackElo "2193"]
[Annotator "RC"]
[PlyCount "63"]
[EventDate "2023.10.22"]
[EventType "team-tourn"]
[EventCountry "SRB"]
[SourceTitle "playchess.com"]
[Source "ChessBase"]
[SourceQuality "1"]
[TimeControl "40/5400+30:1800+30"]

1. e4 {[%emt 0:01:07]} d5 {[%emt 0:01:11]} 2. exd5 {[%emt 0:00:04]} Qxd5 {[%emt 0:00:11]} 3. Nf3 {[%emt 0:00:26]} Nf6 {[%emt 0:00:28]} 4. Be2 {[%emt 0:00:46]} g6 {[%emt 0:01:29]} 5. d4 {[%emt 0:02:03]} c6 {[%emt 0:01:07]} 6. Bf4 {[%emt 0:01:42]} Bg7 {[%emt 0:00:31]} 7. Nc3 {[%emt 0:02:16]} Qa5 {[%emt 0:00:21]} 8. O-O {[%emt 0:02:55]} O-O {[%emt 0:00:47]} 9. Qc1 {[%emt 0:04:09]} Nbd7 {[%emt 0:02:49]} 10. a3 {[%emt 0:06:17]} Nd5 {[%emt 0:06:18]} 11. Nxd5 {[%emt 0:00:39]} Qxd5 {[%emt 0:00:40]} 12. Bh6 {[%emt 0:01:16]} Nf6 {[%emt 0:06:46]} 13. Bxg7 {[%emt 0:01:57]} Kxg7 {[%emt 0:00:14]} 14. c4 {[%emt 0:01:23]} Qd6 {[%emt 0:01:37]} 15. h3 {[%emt 0:04:15]} b6 {[%emt 0:10:28]} 16. Rd1 {[%emt 0:07:36]} c5 {[%emt 0:04:15]} 17. dxc5 {[%emt 0:04:28]} Qxc5 {[%emt 0:00:12]} 18. b4 {[%emt 0:00:05]} Qc7 {[%emt 0:00:39]} 19. Qe3 {[%emt 0:05:12]} Bb7 {[%emt 0:04:53]} 20. Nd4 {[%emt 0:02:32]} Rfe8 {[%emt 0:05:38]} 21. Rac1 {[%emt 0:01:15]} Rac8 {[%emt 0:03:34]} 22. Bf3 {[%emt 0:05:04]} a6 {[%emt 0:03:09]} 23. b5 {[%emt 0:07:10]} e5 {[%emt 0:03:37]} 24. Bxb7 {[%emt 0:01:15]} Qxb7 {[%emt 0:03:08]} 25. Nf5+ {[%emt 0:06:38]} gxf5 {[%emt 0:02:25]} 26. Qg5+ {[%emt 0:00:04]} Kf8 {[%emt 0:00:19]} 27. Qxf6 {[%emt 0:00:03]} Re6 {[%emt 0:02:00]} 28. Qxf5 {[%emt 0:00:42]} h6 {[%emt 0:03:56]} 29. bxa6 {[%emt 0:00:17]} Qa7 {[%emt 0:01:47]} 30. Rc3 {[%emt 0:02:12]} Rc7 {[%emt 0:03:15]} 31. Rf3 {[%emt 0:02:58]} Ke8 {[%emt 0:06:35]} 32. Qh7 {[%emt 0:00:22]} 1-0